[Event "Delancey UK Schools 2019 U18"]
[Site "Daventry"]
[Date "2019.09.24"]
[Round "4.7"]
[White "Ye, Kevin"]
[Black "Modi, Shyam Jagdish"]
[Result "0-1"]
[ECO "B22"]
[WhiteElo "1758"]
[BlackElo "2142"]
[Annotator "ChessBase"]
[PlyCount "50"]
[EventDate "2019.09.24"]
[EventCountry "GBR"]
[SourceTitle "playchess.com"]
[Source "ChessBase"]
[SourceQuality "1"]
[TimeControl "40/5400+30:1800+30"]

1. e4 {[%emt 1:10:13]} c5 {[%emt 1:10:11]} 2. c3 {[%emt 0:00:24]} Nf6 {[%emt 0:00:23]} 3. e5 {[%emt 0:00:21]} Nd5 {[%emt 0:00:21]} 4. d4 {[%emt 0:00:21]} cxd4 {[%emt 0:00:28]} 5. Nf3 {[%emt 0:00:22]} e6 {[%emt 0:00:21]} 6. cxd4 {[%emt 0:00:21]} Nc6 {[%emt 0:00:22]} 7. Bc4 {[%emt 0:00:30]} d6 {[%emt 0:00:25]} 8. O-O {[%emt 0:00:32]} Be7 {[%emt 0:00:20]} 9. Nc3 {[%emt 0:00:46]} Nxc3 {[%emt 0:00:42]} 10. bxc3 {[%emt 0:00:21]} dxe5 {[%emt 0:00:15]} 11. Nxe5 {[%emt 0:00:58]} Nxe5 {[%emt 0:00:35]} 12. dxe5 {[%emt 0:00:21]} O-O {[%emt 0:00:29]} 13. Qf3 {[%emt 0:01:14]} Qc7 {[%emt 0:00:48]} 14. Qe4 {[%emt 0:02:19]} Bd7 {[%emt 0:00:35]} 15. Bd3 {[%emt 0:00:57]} g6 {[%emt 0:00:25]} 16. Bh6 {[%emt 0:00:23]} Rfd8 {[%emt 0:01:06]} 17. Rfd1 {[%emt 0:02:46]} Bc6 {[%emt 0:01:10]} 18. Qe2 {[%emt 0:02:27]} Rac8 {[%emt 0:02:29]} 19. f4 {[%emt 0:01:39]} Bd5 {[%emt 0:02:47]} 20. f5 {[%emt 0:02:35]} exf5 {[%emt 0:01:15]} 21. Bxf5 {[%emt 0:04:57]} gxf5 {[%emt 0:01:45]} 22. Rd3 {[%emt 0:01:38]} Qb6+ {[%emt 0:01:00]} 23. Be3 {[%emt 0:02:03]} Bc5 {[%emt 0:00:38]} 24. Rf1 {[%emt 0:01:25]} Bxe3+ {[%emt 0:00:45]} 25. Rxe3 {[%emt 0:00:21]} Rxc3 {[%emt 0:00:42]} 0-1

[Event "Delancey UK Schools 2019 U18"]
[Site "Daventry"]
[Date "2019.09.24"]
[Round "4.8"]
[White "Isaksen, Peter A"]
[Black "Stoyanov, Viktor"]
[Result "1-0"]
[ECO "B22"]
[WhiteElo "1858"]
[BlackElo "2272"]
[Annotator "ChessBase"]
[PlyCount "93"]
[EventDate "2019.09.24"]
[EventCountry "GBR"]
[SourceTitle "playchess.com"]
[Source "ChessBase"]
[SourceQuality "1"]
[TimeControl "40/5400+30:1800+30"]

1. e4 {[%emt 1:10:12]} c5 {[%emt 1:11:17]} 2. c3 {[%emt 0:00:22]} d5 {[%emt 0:00:22]} 3. exd5 {[%emt 0:00:22]} Qxd5 {[%emt 0:00:22]} 4. d4 {[%emt 0:00:22]} Nf6 {[%emt 0:00:22]} 5. Nf3 {[%emt 0:00:21]} e6 {[%emt 0:00:22]} 6. Be2 {[%emt 0:01:02]} Be7 {[%emt 0:00:40]} 7. O-O {[%emt 0:00:24]} O-O {[%emt 0:00:22]} 8. Be3 {[%emt 0:00:22]} cxd4 {[%emt 0:00:25]} 9. cxd4 {[%emt 0:00:25]} b6 {[%emt 0:00:26]} 10. Nc3 {[%emt 0:00:23]} Qd8 {[%emt 0:00:26]} 11. Ne5 {[%emt 0:00:40]} Bb7 {[%emt 0:00:24]} 12. Bf3 {[%emt 0:00:35]} Nd5 {[%emt 0:01:21]} 13. Qb3 {[%emt 0:02:17]} Na6 {[%emt 0:03:14]} 14. Nxd5 {[%emt 0:01:34]} exd5 {[%emt 0:00:24]} 15. Rac1 {[%emt 0:00:48]} Qd6 {[%emt 0:01:36]} 16. Bf4 {[%emt 0:01:44]} Rac8 {[%emt 0:02:14]} 17. Nc6 {[%emt 0:02:03]} Qd7 {[%emt 0:01:25]} 18. Nxa7 {[%emt 0:03:19]} Ra8 {[%emt 0:07:07]} 19. Qxb6 {[%emt 0:00:58]} Bd8 {[%emt 0:00:35]} 20. Qb5 {[%emt 0:00:22]} Qxb5 {[%emt 0:00:52]} 21. Nxb5 {[%emt 0:00:23]} Nb4 {[%emt 0:00:22]} 22. Bd6 {[%emt 0:02:09]} Nd3 {[%emt 0:00:25]} 23. Rc3 {[%emt 0:01:31]} Nxb2 {[%emt 0:02:57]} 24. Bxf8 {[%emt 0:00:33]} Kxf8 {[%emt 0:00:43]} 25. Nd6 {[%emt 0:01:07]} Ba6 {[%emt 0:00:23]} 26. Re1 {[%emt 0:01:27]} Bf6 {[%emt 0:00:41]} 27. Bxd5 {[%emt 0:01:31]} Rd8 {[%emt 0:00:22]} 28. Rc6 {[%emt 0:02:02]} Nd3 {[%emt 0:00:39]} 29. Rb1 {[%emt 0:02:19]} Be7 {[%emt 0:00:59]} 30. Rxa6 {[%emt 0:00:46]} Bxd6 {[%emt 0:00:21]} 31. Ra8 {[%emt 0:00:23]} Rxa8 {[%emt 0:00:34]} 32. Bxa8 {[%emt 0:00:22]} Nf4 {[%emt 0:00:31]} 33. Kf1 {[%emt 0:01:08]} Ne6 {[%emt 0:00:24]} 34. d5 {[%emt 0:00:35]} Nc7 {[%emt 0:00:23]} 35. Bc6 {[%emt 0:00:27]} Ke7 {[%emt 0:00:21]} 36. a4 {[%emt 0:00:37]} Kf6 {[%emt 0:00:29]} 37. a5 {[%emt 0:00:47]} Ke5 {[%emt 0:00:21]} 38. Bb7 {[%emt 0:00:24]} Bc5 {[%emt 0:00:23]} 39. Rc1 {[%emt 0:00:40]} Kd6 {[%emt 0:00:22]} 40. a6 {[%emt 0:00:24]} Ba7 {[%emt 0:00:22]} 41. Ke2 {[%emt 0:31:00]} Nb5 {[%emt 0:30:21]} 42. Kd3 {[%emt 0:00:45]} Bxf2 {[%emt 0:00:28]} 43. Rf1 {[%emt 0:00:27]} Bd4 {[%emt 0:00:26]} 44. Rxf7 {[%emt 0:00:29]} Be5 {[%emt 0:00:32]} 45. Bc6 {[%emt 0:00:36]} Nc7 {[%emt 0:00:25]} 46. Rxc7 {[%emt 0:00:32]} Kxc7 {[%emt 0:00:22]} 47. a7 {[%emt 0:00:21]} 1-0

[Event "Delancey UK Schools 2019 U18"]
[Site "Daventry"]
[Date "2019.09.24"]
[Round "4.9"]
[White "Modi, Kishan Jagdish"]
[Black "Rathbone-Jones, Ifan"]
[Result "1-0"]
[ECO "C18"]
[WhiteElo "2004"]
[BlackElo "1879"]
[Annotator "NA"]
[PlyCount "57"]
[EventDate "2019.09.24"]
[EventCountry "GBR"]
[SourceTitle "playchess.com"]
[Source "ChessBase"]
[SourceQuality "1"]
[TimeControl "40/5400+30:1800+30"]

1. e4 {[%emt 1:10:13]} e6 {[%emt 1:10:11]} 2. d4 {[%emt 0:00:22]} d5 {[%emt 0:00:21]} 3. Nc3 {[%emt 0:00:21]} Bb4 {[%emt 0:00:22]} 4. e5 {[%emt 0:00:22]} c5 {[%emt 0:00:30]} 5. a3 {[%emt 0:00:23]} Ba5 {[%emt 0:00:35]} 6. b4 {[%emt 0:00:22]} cxb4 {[%emt 0:00:25]} 7. Nb5 {[%emt 0:00:21]} bxa3+ {[%emt 0:00:32]} 8. Bd2 {[%emt 0:00:28]} Nc6 {[%emt 0:01:45]} 9. Nd6+ {[%emt 0:00:25]} Kf8 {[%emt 0:00:22]} 10. Rxa3 {[%emt 0:00:35]} Bc7 {[%emt 0:02:19]} 11. Nb5 {[%emt 0:01:44]} Bd7 {[%emt 0:01:37]} 12. Qg4 {[%emt 0:01:26]} a6 {[%emt 0:02:57]} 13. Nxc7 {[%emt 0:00:27]} Qxc7 {[%emt 0:00:22]} 14. Rg3 {[%emt 0:00:32]} g6 {[%emt 0:00:26]} 15. Bd3 {[%emt 0:00:25]} h5 {[%emt 0:01:45]} 16. Qf4 {[%emt 0:00:39]} Kg7 {[%emt 0:02:48]} 17. Nf3 {[%emt 0:00:36]} Nce7 {[%emt 0:01:14]} 18. O-O {[%emt 0:01:11]} Nf5 {[%emt 0:00:38]} 19. Bxf5 {[%emt 0:00:33]} exf5 {[%emt 0:00:22]} 20. Nh4 {[%emt 0:02:22]} Qxc2 {[%emt 0:01:38]} 21. Rc1 {[%emt 0:02:25]} Qb2 {[%emt 0:01:34]} 22. Rc7 {[%emt 0:00:47]} Qb1+ {[%emt 0:01:06]} 23. Bc1 {[%emt 0:00:24]} Be6 {[%emt 0:00:21]} 24. Nxg6 {[%emt 0:00:41]} Nh6 {[%emt 0:04:28]} 25. Ne7+ {[%emt 0:01:02]} Ng4 {[%emt 0:00:36]} 26. Qg5+ {[%emt 0:01:26]} Kf8 {[%emt 0:01:02]} 27. Ng6+ {[%emt 0:00:26]} Kg7 {[%emt 0:01:01]} 28. Nf4+ {[%emt 0:02:03]} Kh7 {[%emt 0:01:03]} 29. Qg6# {[%emt 0:00:25]} 1-0

[Event "Delancey UK Schools 2019 U18"]
[Site "Daventry"]
[Date "2019.09.24"]
[Round "4.10"]
[White "Stewart, Lilya"]
[Black "Stubbs, Oliver"]
[Result "1/2-1/2"]
[ECO "C07"]
[WhiteElo "1567"]
[BlackElo "1835"]
[Annotator "NA"]
[PlyCount "74"]
[EventDate "2019.09.24"]
[EventCountry "GBR"]
[SourceTitle "playchess.com"]
[Source "ChessBase"]
[SourceQuality "1"]
[TimeControl "40/5400+30:1800+30"]

1. e4 {[%emt 1:10:11]} e6 {[%emt 1:10:10]} 2. d4 {[%emt 0:00:23]} d5 {[%emt 0:00:21]} 3. Nd2 {[%emt 0:00:22]} c5 {[%emt 0:00:21]} 4. exd5 {[%emt 0:00:24]} Qxd5 {[%emt 0:00:22]} 5. Ngf3 {[%emt 0:00:28]} cxd4 {[%emt 0:00:21]} 6. Bc4 {[%emt 0:00:25]} Qd6 {[%emt 0:00:21]} 7. Nb3 {[%emt 0:00:31]} Nc6 {[%emt 0:00:21]} 8. Nbxd4 {[%emt 0:00:24]} Nxd4 {[%emt 0:00:21]} 9. Nxd4 {[%emt 0:00:48]} a6 {[%emt 0:00:24]} 10. O-O {[%emt 0:00:49]} Qc7 {[%emt 0:00:21]} 11. Be2 {[%emt 0:00:56]} Nf6 {[%emt 0:00:24]} 12. c3 {[%emt 0:00:39]} Bd6 {[%emt 0:00:22]} 13. g3 {[%emt 0:00:36]} O-O {[%emt 0:00:21]} 14. Bf3 {[%emt 0:00:44]} e5 {[%emt 0:01:10]} 15. Nc2 {[%emt 0:01:28]} Bf5 {[%emt 0:01:30]} 16. Ne3 {[%emt 0:02:05]} Bg6 {[%emt 0:01:30]} 17. Re1 {[%emt 0:01:47]} Rfe8 {[%emt 0:00:25]} 18. Qb3 {[%emt 0:01:47]} e4 {[%emt 0:01:01]} 19. Bg2 {[%emt 0:00:40]} Rad8 {[%emt 0:01:43]} 20. Nc4 {[%emt 0:00:53]} Bc5 {[%emt 0:04:14]} 21. Bf4 {[%emt 0:01:56]} Qc8 {[%emt 0:01:31]} 22. Ne5 {[%emt 0:03:42]} Qe6 {[%emt 0:02:42]} 23. Nxg6 {[%emt 0:05:31]} hxg6 {[%emt 0:03:02]} 24. Qxb7 {[%emt 0:02:05]} Ng4 {[%emt 0:00:23]} 25. Rxe4 {[%emt 0:01:26]} Bxf2+ {[%emt 0:01:50]} 26. Kh1 {[%emt 0:00:40]} Qf6 {[%emt 0:00:59]} 27. Rxe8+ {[%emt 0:00:46]} Rxe8 {[%emt 0:00:22]} 28. Qf3 {[%emt 0:00:31]} g5 {[%emt 0:02:25]} 29. Qxg4 {[%emt 0:00:37]} gxf4 {[%emt 0:00:22]} 30. Qxf4 {[%emt 0:00:28]} Qxf4 {[%emt 0:00:38]} 31. gxf4 {[%emt 0:00:22]} Re2 {[%emt 0:00:20]} 32. Rb1 {[%emt 0:00:46]} Be3 {[%emt 0:00:21]} 33. Bf1 {[%emt 0:00:41]} Rf2 {[%emt 0:00:31]} 34. Bxa6 {[%emt 0:00:29]} Bxf4 {[%emt 0:00:21]} 35. Kg1 {[%emt 0:00:25]} Rc2 {[%emt 0:00:21]} 36. c4 {[%emt 0:00:47]} Bxh2+ {[%emt 0:00:23]} 37. Kf1 {[%emt 0:00:27]} Be5 {[%emt 0:00:21]} 1/2-1/2

[Event "Delancey UK Schools 2019 U18"]
[Site "Daventry"]
[Date "2019.09.24"]
[Round "4.16"]
[White "Modhura, Urbi"]
[Black "Audhora, Purba"]
[Result "0-1"]
[ECO "C54"]
[WhiteElo "1451"]
[BlackElo "1168"]
[Annotator "NA"]
[PlyCount "74"]
[EventDate "2019.09.24"]
[EventCountry "GBR"]
[SourceTitle "playchess.com"]
[Source "ChessBase"]
[SourceQuality "1"]
[TimeControl "40/5400+30:1800+30"]

1. e4 {[%emt 1:10:14]} e5 {[%emt 1:10:13]} 2. Nf3 {[%emt 0:00:22]} Nc6 {[%emt 0:00:23]} 3. Bc4 {[%emt 0:00:21]} Nf6 {[%emt 0:00:21]} 4. d3 {[%emt 0:00:22]} Bc5 {[%emt 0:00:22]} 5. c3 {[%emt 0:00:21]} d6 {[%emt 0:00:22]} 6. h3 {[%emt 0:00:28]} O-O {[%emt 0:00:24]} 7. O-O {[%emt 0:00:21]} Be6 {[%emt 0:00:22]} 8. Bb3 {[%emt 0:00:25]} d5 {[%emt 0:00:28]} 9. d4 {[%emt 0:01:22]} dxe4 {[%emt 0:03:34]} 10. Nxe5 {[%emt 0:02:12]} Nxe5 {[%emt 0:02:39]} 11. dxc5 {[%emt 0:00:55]} Bxb3 {[%emt 0:01:30]} 12. Qxb3 {[%emt 0:00:48]} Qe7 {[%emt 0:01:14]} 13. Bg5 {[%emt 0:01:50]} h6 {[%emt 0:00:45]} 14. Be3 {[%emt 0:01:35]} c6 {[%emt 0:02:10]} 15. Qc2 {[%emt 0:02:08]} Rad8 {[%emt 0:01:36]} 16. b4 {[%emt 0:02:10]} a6 {[%emt 0:00:31]} 17. Bd4 {[%emt 0:00:37]} Rfe8 {[%emt 0:00:33]} 18. Nd2 {[%emt 0:00:31]} Ng6 {[%emt 0:00:31]} 19. Rae1 {[%emt 0:01:22]} Qd7 {[%emt 0:01:44]} 20. Nxe4 {[%emt 0:02:29]} Nxe4 {[%emt 0:00:36]} 21. Rxe4 {[%emt 0:00:59]} Rxe4 {[%emt 0:00:41]} 22. Qxe4 {[%emt 0:00:39]} Qd5 {[%emt 0:00:29]} 23. Qxd5 {[%emt 0:00:48]} Rxd5 {[%emt 0:01:42]} 24. Re1 {[%emt 0:00:34]} Rd8 {[%emt 0:01:23]} 25. a3 {[%emt 0:00:42]} Kf8 {[%emt 0:01:15]} 26. a4 {[%emt 0:00:42]} Re8 {[%emt 0:00:43]} 27. Rxe8+ {[%emt 0:00:52]} Kxe8 {[%emt 0:00:34]} 28. c4 {[%emt 0:00:31]} Kd7 {[%emt 0:00:30]} 29. b5 {[%emt 0:00:57]} cxb5 {[%emt 0:00:29]} 30. cxb5 {[%emt 0:00:32]} axb5 {[%emt 0:00:32]} 31. axb5 {[%emt 0:00:22]} f6 {[%emt 0:00:21]} 32. g3 {[%emt 0:00:33]} Ne7 {[%emt 0:00:23]} 33. Kg2 {[%emt 0:00:33]} Nd5 {[%emt 0:00:23]} 34. Kf3 {[%emt 0:00:34]} g5 {[%emt 0:00:23]} 35. b6 {[%emt 0:00:32]} Ke6 {[%emt 0:00:28]} 36. h4 {[%emt 0:01:08]} gxh4 {[%emt 0:00:47]} 37. gxh4 {[%emt 0:00:29]} Kd7 {[%emt 0:00:22]} 0-1

[Event "Delancey UK Schools 2019 U18"]
[Site "Daventry"]
[Date "2019.09.24"]
[Round "5.1"]
[White "Willow, Jonah B"]
[Black "Boswell, Jacob Connor"]
[Result "0-1"]
[ECO "C49"]
[WhiteElo "2327"]
[BlackElo "2000"]
[Annotator "NA"]
[PlyCount "124"]
[EventDate "2019.09.24"]
[EventCountry "GBR"]
[SourceTitle "playchess.com"]
[Source "ChessBase"]
[SourceQuality "1"]
[TimeControl "40/5400+30:1800+30"]

1. e4 {[%emt 1:10:11]} e5 {[%emt 1:10:11]} 2. Nf3 {[%emt 0:00:22]} Nc6 {[%emt 0:00:22]} 3. Nc3 {[%emt 0:00:22]} Nf6 {[%emt 0:00:22]} 4. Bb5 {[%emt 0:00:22]} Bb4 {[%emt 0:00:22]} 5. O-O {[%emt 0:00:23]} O-O {[%emt 0:00:24]} 6. d3 {[%emt 0:00:22]} Bxc3 {[%emt 0:00:22]} 7. bxc3 {[%emt 0:00:21]} d6 {[%emt 0:00:23]} 8. Bg5 {[%emt 0:00:23]} Qe7 {[%emt 0:00:23]} 9. Re1 {[%emt 0:00:21]} Nd8 {[%emt 0:00:22]} 10. d4 {[%emt 0:00:22]} Ne6 {[%emt 0:00:27]} 11. Bc1 {[%emt 0:00:23]} c5 {[%emt 0:00:38]} 12. Bd3 {[%emt 0:00:27]} Rd8 {[%emt 0:02:31]} 13. d5 {[%emt 0:00:25]} Nf8 {[%emt 0:01:07]} 14. Nd2 {[%emt 0:00:22]} Bd7 {[%emt 0:01:06]} 15. a4 {[%emt 0:00:55]} b6 {[%emt 0:01:17]} 16. Nc4 {[%emt 0:01:14]} Rab8 {[%emt 0:01:35]} 17. g3 {[%emt 0:03:12]} Ng6 {[%emt 0:00:45]} 18. Bf1 {[%emt 0:02:40]} a6 {[%emt 0:02:10]} 19. Nd2 {[%emt 0:03:10]} b5 {[%emt 0:01:42]} 20. axb5 {[%emt 0:00:22]} axb5 {[%emt 0:00:22]} 21. c4 {[%emt 0:00:21]} b4 {[%emt 0:00:44]} 22. Nb3 {[%emt 0:00:37]} Ra8 {[%emt 0:01:18]} 23. Bb2 {[%emt 0:01:04]} Ba4 {[%emt 0:01:20]} 24. Qd2 {[%emt 0:01:35]} Ra7 {[%emt 0:01:07]} 25. Nc1 {[%emt 0:02:50]} Rda8 {[%emt 0:01:07]} 26. Bg2 {[%emt 0:00:32]} Bd7 {[%emt 0:03:13]} 27. Rxa7 {[%emt 0:00:45]} Rxa7 {[%emt 0:00:21]} 28. c3 {[%emt 0:00:43]} bxc3 {[%emt 0:00:50]} 29. Bxc3 {[%emt 0:00:32]} Ra4 {[%emt 0:00:35]} 30. Bf1 {[%emt 0:00:42]} Qd8 {[%emt 0:01:01]} 31. Qb2 {[%emt 0:01:37]} Qc7 {[%emt 0:00:58]} 32. Bd3 {[%emt 0:00:51]} Bc8 {[%emt 0:01:30]} 33. Ne2 {[%emt 0:00:49]} Qb7 {[%emt 0:01:07]} 34. Qxb7 {[%emt 0:01:58]} Bxb7 {[%emt 0:00:21]} 35. f4 {[%emt 0:00:40]} Nd7 {[%emt 0:00:45]} 36. Bb2 {[%emt 0:04:14]} Ba6 {[%emt 0:00:46]} 37. f5 {[%emt 0:01:04]} Ngf8 {[%emt 0:00:47]} 38. Nc3 {[%emt 0:00:32]} Rb4 {[%emt 0:00:37]} 39. Ra1 {[%emt 0:00:57]} Rxb2 {[%emt 0:01:20]} 40. Rxa6 {[%emt 0:00:21]} Rb3 {[%emt 0:00:21]} 41. Nb5 {[%emt 0:30:22]} Rxd3 {[%emt 0:30:23]} 42. Nxd6 {[%emt 0:00:21]} Rd2 {[%emt 0:00:40]} 43. Rc6 {[%emt 0:00:54]} h5 {[%emt 0:00:38]} 44. Nb7 {[%emt 0:00:31]} Rd4 {[%emt 0:00:40]} 45. Nxc5 {[%emt 0:00:35]} Nxc5 {[%emt 0:00:37]} 46. Rxc5 {[%emt 0:00:20]} Rxe4 {[%emt 0:00:21]} 47. Rc8 {[%emt 0:00:46]} Rd4 {[%emt 0:00:26]} 48. Kf2 {[%emt 0:00:23]} f6 {[%emt 0:00:26]} 49. Ke3 {[%emt 0:00:27]} g6 {[%emt 0:00:44]} 50. Rc6 {[%emt 0:00:44]} Kf7 {[%emt 0:00:51]} 51. Rc7+ {[%emt 0:00:26]} Ke8 {[%emt 0:00:36]} 52. Rc8+ {[%emt 0:00:32]} Ke7 {[%emt 0:00:21]} 53. Rc7+ {[%emt 0:00:20]} Ke8 {[%emt 0:01:07]} 54. Rc8+ {[%emt 0:00:21]} Kf7 {[%emt 0:00:30]} 55. Rc7+ {[%emt 0:00:21]} Kg8 {[%emt 0:00:21]} 56. Rc6 {[%emt 0:00:21]} Kg7 {[%emt 0:00:57]} 57. Rc7+ {[%emt 0:00:47]} Kh6 {[%emt 0:00:21]} 58. Rc8 {[%emt 0:00:43]} Nd7 {[%emt 0:00:38]} 59. Rc7 {[%emt 0:00:41]} Nb6 {[%emt 0:00:24]} 60. Rc6 {[%emt 0:00:31]} Nxc4+ {[%emt 0:00:29]} 61. Kf3 {[%emt 0:00:21]} Kg5 {[%emt 0:00:38]} 62. fxg6 {[%emt 0:00:24]} Kxg6 {[%emt 0:00:22]} 0-1

[Event "Delancey UK Schools 2019 U18"]
[Site "Daventry"]
[Date "2019.09.24"]
[Round "5.2"]
[White "Golding, Alex"]
[Black "Munshi, Aditya"]
[Result "1/2-1/2"]
[ECO "B10"]
[WhiteElo "2306"]
[BlackElo "2183"]
[Annotator "NA"]
[PlyCount "106"]
[EventDate "2019.09.24"]
[EventCountry "GBR"]
[SourceTitle "playchess.com"]
[Source "ChessBase"]
[SourceQuality "1"]
[TimeControl "40/5400+30:1800+30"]

1. e4 {[%emt 1:10:11]} c6 {[%emt 1:10:59]} 2. d3 {[%emt 0:00:31]} d5 {[%emt 0:00:25]} 3. Nd2 {[%emt 0:00:21]} e5 {[%emt 0:00:22]} 4. Ngf3 {[%emt 0:00:29]} Bd6 {[%emt 0:00:22]} 5. c4 {[%emt 0:00:28]} d4 {[%emt 0:01:29]} 6. c5 {[%emt 0:00:22]} Bc7 {[%emt 0:02:18]} 7. Nc4 {[%emt 0:00:59]} Qe7 {[%emt 0:00:31]} 8. b4 {[%emt 0:01:27]} a5 {[%emt 0:03:00]} 9. Nxa5 {[%emt 0:02:26]} Na6 {[%emt 0:02:05]} 10. Nb3 {[%emt 0:01:27]} Nxb4 {[%emt 0:00:36]} 11. Bd2 {[%emt 0:02:03]} Na6 {[%emt 0:00:44]} 12. Rc1 {[%emt 0:00:39]} Be6 {[%emt 0:03:25]} 13. Qc2 {[%emt 0:00:21]} Nf6 {[%emt 0:00:37]} 14. Ng5 {[%emt 0:00:37]} Bd7 {[%emt 0:00:45]} 15. Be2 {[%emt 0:01:20]} h6 {[%emt 0:00:29]} 16. Nf3 {[%emt 0:00:22]} Be6 {[%emt 0:00:36]} 17. Na5 {[%emt 0:02:47]} Rb8 {[%emt 0:03:19]} 18. Nc4 {[%emt 0:01:03]} Nd7 {[%emt 0:00:48]} 19. O-O {[%emt 0:00:40]} Qxc5 {[%emt 0:02:03]} 20. Qb2 {[%emt 0:00:55]} Qe7 {[%emt 0:00:38]} 21. Ne1 {[%emt 0:00:37]} O-O {[%emt 0:00:42]} 22. g3 {[%emt 0:00:35]} Qd8 {[%emt 0:02:22]} 23. f4 {[%emt 0:00:45]} exf4 {[%emt 0:00:50]} 24. gxf4 {[%emt 0:00:22]} f5 {[%emt 0:01:24]} 25. exf5 {[%emt 0:00:49]} Bxf5 {[%emt 0:01:04]} 26. Nf3 {[%emt 0:00:22]} b5 {[%emt 0:00:42]} 27. Nce5 {[%emt 0:02:43]} Nxe5 {[%emt 0:00:22]} 28. Nxe5 {[%emt 0:00:27]} Bxe5 {[%emt 0:00:38]} 29. fxe5 {[%emt 0:00:20]} Qd5 {[%emt 0:00:44]} 30. Bf3 {[%emt 0:00:58]} Qf7 {[%emt 0:00:29]} 31. Bg2 {[%emt 0:00:36]} Rbc8 {[%emt 0:00:31]} 32. Qa3 {[%emt 0:00:32]} Nc7 {[%emt 0:00:27]} 33. Rxc6 {[%emt 0:00:25]} Ne6 {[%emt 0:00:31]} 34. Rxc8 {[%emt 0:00:45]} Rxc8 {[%emt 0:00:21]} 35. Qb3 {[%emt 0:00:22]} Qg6 {[%emt 0:00:38]} 36. Rf3 {[%emt 0:00:37]} Rf8 {[%emt 0:00:33]} 37. Rg3 {[%emt 0:00:23]} Qh5 {[%emt 0:00:26]} 38. Bf3 {[%emt 0:00:25]} Qh4 {[%emt 0:00:28]} 39. Bd5 {[%emt 0:00:30]} Qe7 {[%emt 0:00:36]} 40. Bb4 {[%emt 0:00:30]} Qc7 {[%emt 0:00:27]} 41. Bxe6+ {[%emt 0:30:30]} Kh8 {[%emt 0:30:31]} 42. Bxf8 {[%emt 0:02:05]} Qc1+ {[%emt 0:00:27]} 43. Kf2 {[%emt 0:00:41]} Qd2+ {[%emt 0:00:25]} 44. Kf1 {[%emt 0:00:24]} Bxe6 {[%emt 0:00:37]} 45. Bxg7+ {[%emt 0:00:33]} Kh7 {[%emt 0:00:25]} 46. Qxe6 {[%emt 0:00:40]} Qd1+ {[%emt 0:00:36]} 47. Kf2 {[%emt 0:00:41]} Qd2+ {[%emt 0:00:25]} 48. Kf3 {[%emt 0:00:28]} Qe3+ {[%emt 0:00:22]} 49. Kg4 {[%emt 0:01:10]} Qg5+ {[%emt 0:00:22]} 50. Kh3 {[%emt 0:00:25]} Qh5+ {[%emt 0:00:23]} 51. Kg2 {[%emt 0:00:23]} Qe2+ {[%emt 0:00:22]} 52. Kh3 {[%emt 0:00:50]} Qh5+ {[%emt 0:00:22]} 53. Kg2 {[%emt 0:00:21]} Qe2+ {[%emt 0:00:21]} 1/2-1/2

[Event "Delancey UK Schools 2019 U18"]
[Site "Daventry"]
[Date "2019.09.24"]
[Round "5.3"]
[White "Klingher, Dominic"]
[Black "Pollack, Oscar"]
[Result "1-0"]
[ECO "C00"]
[WhiteElo "2071"]
[BlackElo "2112"]
[Annotator "NA"]
[PlyCount "57"]
[EventDate "2019.09.24"]
[EventCountry "GBR"]
[SourceTitle "playchess.com"]
[Source "ChessBase"]
[SourceQuality "1"]
[TimeControl "40/5400+30:1800+30"]

1. e4 {[%emt 1:10:44]} e6 {[%emt 1:10:10]} 2. d3 {[%emt 0:00:44]} d5 {[%emt 0:00:22]} 3. Nd2 {[%emt 0:00:21]} Nf6 {[%emt 0:00:28]} 4. Ngf3 {[%emt 0:00:22]} b6 {[%emt 0:00:23]} 5. g3 {[%emt 0:00:31]} Bb7 {[%emt 0:00:22]} 6. Bg2 {[%emt 0:00:54]} dxe4 {[%emt 0:00:21]} 7. Ng5 {[%emt 0:00:21]} Nc6 {[%emt 0:00:32]} 8. Ngxe4 {[%emt 0:00:44]} Qd7 {[%emt 0:00:30]} 9. O-O {[%emt 0:01:01]} O-O-O {[%emt 0:00:24]} 10. a4 {[%emt 0:00:37]} h5 {[%emt 0:00:36]} 11. h4 {[%emt 0:00:44]} a5 {[%emt 0:00:49]} 12. Nc4 {[%emt 0:01:00]} Nxe4 {[%emt 0:02:46]} 13. Bxe4 {[%emt 0:00:50]} f6 {[%emt 0:01:51]} 14. Be3 {[%emt 0:00:42]} Kb8 {[%emt 0:01:25]} 15. c3 {[%emt 0:02:08]} f5 {[%emt 0:02:59]} 16. Bg2 {[%emt 0:00:27]} e5 {[%emt 0:01:00]} 17. b4 {[%emt 0:01:13]} f4 {[%emt 0:01:12]} 18. b5 {[%emt 0:01:42]} Qxd3 {[%emt 0:05:05]} 19. bxc6 {[%emt 0:01:45]} fxe3 {[%emt 0:02:18]} 20. Qxd3 {[%emt 0:00:42]} exf2+ {[%emt 0:00:24]} 21. Kh2 {[%emt 0:00:49]} Rxd3 {[%emt 0:00:36]} 22. cxb7 {[%emt 0:00:35]} Bd6 {[%emt 0:01:20]} 23. Nxd6 {[%emt 0:01:03]} cxd6 {[%emt 0:00:50]} 24. Rxf2 {[%emt 0:00:23]} d5 {[%emt 0:00:59]} 25. Rf7 {[%emt 0:00:34]} g5 {[%emt 0:00:54]} 26. hxg5 {[%emt 0:01:23]} h4 {[%emt 0:00:22]} 27. g6 {[%emt 0:00:31]} Rxg3 {[%emt 0:01:56]} 28. g7 {[%emt 0:00:28]} Rh7 {[%emt 0:00:40]} 29. g8=Q+ {[%emt 0:00:48]} 1-0

[Event "Delancey UK Schools 2019 U18"]
[Site "Daventry"]
[Date "2019.09.24"]
[Round "5.4"]
[White "Modi, Shyam Jagdish"]
[Black "Grieve, Harry"]
[Result "0-1"]
[ECO "E06"]
[WhiteElo "2142"]
[BlackElo "2277"]
[Annotator "NA"]
[PlyCount "62"]
[EventDate "2019.09.24"]
[EventCountry "GBR"]
[SourceTitle "playchess.com"]
[Source "ChessBase"]
[SourceQuality "1"]
[TimeControl "40/5400+30:1800+30"]

1. d4 {[%emt 1:10:13]} d5 {[%emt 1:10:11]} 2. c4 {[%emt 0:00:22]} e6 {[%emt 0:00:22]} 3. Nf3 {[%emt 0:00:21]} c6 {[%emt 0:00:21]} 4. Qb3 {[%emt 0:00:37]} Nf6 {[%emt 0:01:49]} 5. g3 {[%emt 0:00:22]} Be7 {[%emt 0:01:08]} 6. Bg2 {[%emt 0:00:21]} O-O {[%emt 0:00:22]} 7. O-O {[%emt 0:00:24]} b6 {[%emt 0:00:22]} 8. Nc3 {[%emt 0:02:31]} Bb7 {[%emt 0:01:01]} 9. Rd1 {[%emt 0:01:29]} Nbd7 {[%emt 0:01:06]} 10. Bf4 {[%emt 0:02:59]} Nh5 {[%emt 0:01:49]} 11. cxd5 {[%emt 0:00:59]} Nxf4 {[%emt 0:01:39]} 12. gxf4 {[%emt 0:01:09]} exd5 {[%emt 0:00:24]} 13. Qc2 {[%emt 0:01:26]} Bd6 {[%emt 0:00:46]} 14. e3 {[%emt 0:00:42]} Rc8 {[%emt 0:00:57]} 15. Qe2 {[%emt 0:03:32]} Re8 {[%emt 0:00:43]} 16. Kh1 {[%emt 0:00:43]} Bxf4 {[%emt 0:00:32]} 17. Bh3 {[%emt 0:01:20]} Rc7 {[%emt 0:00:56]} 18. Qd3 {[%emt 0:00:34]} Bd6 {[%emt 0:00:51]} 19. Rg1 {[%emt 0:00:39]} Qf6 {[%emt 0:01:10]} 20. Qe2 {[%emt 0:03:04]} Ba6 {[%emt 0:01:26]} 21. Qd1 {[%emt 0:01:15]} Nf8 {[%emt 0:01:00]} 22. Bf1 {[%emt 0:01:12]} Bc8 {[%emt 0:01:06]} 23. Bd3 {[%emt 0:00:56]} Qh6 {[%emt 0:01:02]} 24. a4 {[%emt 0:02:18]} Bh3 {[%emt 0:01:58]} 25. Bf1 {[%emt 0:00:47]} Re6 {[%emt 0:01:55]} 26. Ne2 {[%emt 0:02:30]} f5 {[%emt 0:03:38]} 27. Bxh3 {[%emt 0:00:26]} Qxh3 {[%emt 0:00:26]} 28. Ng3 {[%emt 0:00:27]} Rh6 {[%emt 0:01:28]} 29. Qf1 {[%emt 0:00:31]} Qg4 {[%emt 0:00:47]} 30. Qg2 {[%emt 0:00:34]} Ng6 {[%emt 0:00:59]} 31. Ne2 {[%emt 0:00:29]} Qxf3 {[%emt 0:00:29]} 0-1